bitfinex/quotes_BTCUSD_20251208
["timestamp","ask_amount","ask_price","bid_price","bid_amount"]
[1765192726002,0.00671484,92171.0,92170.0,0.60610034]
[1765192726207,0.00671484,92171.0,92170.0,0.56712034]
[1765192726411,0.00671484,92171.0,92170.0,0.58424034]
[1765192726610,0.00671484,92171.0,92170.0,0.56712034]
[1765192726812,0.00671484,92171.0,92170.0,0.58424034]
[1765192727012,0.00671484,92171.0,92170.0,0.56712034]
[1765192727251,0.00671484,92171.0,92170.0,0.56111034]
[1765192727895,0.0471377,92171.0,92170.0,0.003]
[1765192728078,0.05402124,92171.0,92170.0,0.03017747]
[1765192728227,0.27100922,92171.0,92170.0,0.001]
[1765192728423,0.05402124,92171.0,92170.0,0.001]
[1765192728832,0.0471377,92171.0,92170.0,0.21799034]
[1765192729031,0.0471377,92171.0,92170.0,0.21699034]
[1765192729439,0.0481377,92171.0,92170.0,0.21699034]
[1765192730252,0.0491377,92171.0,92170.0,0.21699034]
[1765192730857,0.0103277,92171.0,92170.0,0.21699034]
[1765192731352,0.0491377,92171.0,92170.0,0.21699034]
[1765192733902,0.0255477,92171.0,92170.0,0.21699034]
[1765192734228,0.0103277,92171.0,92170.0,0.21699034]
[1765192735599,0.0339177,92171.0,92170.0,0.21699034]
[1765192736968,0.0491377,92171.0,92170.0,0.21699034]
[1765192739959,0.0255477,92171.0,92170.0,0.21699034]
[1765192740135,0.0103277,92171.0,92170.0,0.21699034]
[1765192741535,0.00871484,92171.0,92170.0,0.25506034]
[1765192741935,0.00871484,92171.0,92170.0,0.27725234]
[1765192742170,0.00771484,92171.0,92170.0,0.27725234]
[1765192742332,0.00771484,92171.0,92170.0,0.31614997]
[1765192742535,0.00771484,92171.0,92170.0,0.31714997]
[1765192742741,0.00771484,92171.0,92170.0,0.27825234]
[1765192742938,0.00771484,92171.0,92170.0,0.27725234]
[1765192743148,0.00671484,92171.0,92170.0,0.27725234]
[1765192743553,0.00671484,92171.0,92170.0,0.60125234]
[1765192743758,0.00671484,92171.0,92170.0,0.60225234]
[1765192744253,0.00671484,92171.0,92170.0,0.60625234]
[1765192752301,0.00671484,92171.0,92170.0,0.61792234]
[1765192755641,0.00671484,92171.0,92170.0,0.59573034]
[1765192755973,0.00671484,92171.0,92170.0,0.61792234]
[1765192756762,0.00671484,92171.0,92170.0,0.63504234]
[1765192764175,0.00671484,92171.0,92170.0,0.71276612]
[1765192766344,0.00671484,92171.0,92170.0,0.71276572]
[1765192766919,0.00671484,92171.0,92170.0,0.63504234]
[1765192767314,0.00671484,92171.0,92170.0,0.71276572]
[1765192769367,0.00671484,92171.0,92170.0,0.63504234]
[1765192770760,0.00671484,92171.0,92170.0,0.61368034]
[1765192771452,0.00671484,92171.0,92170.0,0.67983327]
[1765192771837,0.00671484,92171.0,92170.0,0.60201034]
[1765192773258,0.00671484,92171.0,92170.0,0.62420234]
[1765192773684,0.00671484,92171.0,92170.0,0.63598234]
[1765192774967,0.00671484,92171.0,92170.0,0.61379034]
[1765192775871,0.00671484,92171.0,92170.0,0.63598234]
[1765192776080,0.00671484,92171.0,92170.0,0.61379034]
[1765192777186,0.00671484,92171.0,92170.0,0.63598234]
[1765192777600,0.00671484,92171.0,92170.0,0.61379034]
[1765192777886,0.00671484,92171.0,92170.0,0.63598234]
[1765192780251,0.00671484,92171.0,92170.0,0.61379034]
[1765192780692,0.00671484,92171.0,92170.0,0.63598234]
[1765192784751,0.00671484,92171.0,92170.0,0.62420234]
[1765192785911,0.00671484,92171.0,92170.0,0.60708234]
[1765192786115,0.00671484,92171.0,92170.0,0.62420234]
[1765192786721,0.00671484,92171.0,92170.0,0.63091718]
[1765192796765,0.00671484,92171.0,92170.0,0.55270518]
[1765192796899,0.00671484,92171.0,92170.0,0.64791045]
[1765192797306,0.00671484,92171.0,92170.0,0.64119561]
[1765192797518,0.00671484,92171.0,92170.0,0.55711034]
[1765192797919,0.00671484,92171.0,92170.0,0.56011034]
[1765192798124,0.00671484,92171.0,92170.0,0.55711034]
[1765192798347,0.00671484,92171.0,92170.0,0.56011034]
[1765192799467,0.00671484,92171.0,92170.0,0.59880034]
[1765192799668,0.00671484,92171.0,92170.0,0.57457034]
[1765192799868,0.00671484,92171.0,92170.0,0.55911034]
[1765192800218,0.00671484,92171.0,92170.0,0.56011034]
[1765192801669,0.00671484,92171.0,92170.0,0.21999034]
[1765192801670,0.01864484,92171.0,92170.0,0.21999034]
[1765192801869,0.05775484,92171.0,92170.0,0.21999034]
[1765192802077,0.06514318,92171.0,92170.0,0.003]
[1765192802265,0.06514318,92171.0,92170.0,0.0420185]
[1765192802464,0.06514318,92171.0,92170.0,0.21999034]
[1765192802671,0.0593677,92171.0,92170.0,0.21899034]
[1765192802892,0.0593677,92171.0,92170.0,0.21699034]
[1765192803336,0.0593677,92171.0,92170.0,0.21799034]
[1765192803538,0.0593677,92171.0,92170.0,0.21699034]
[1765192803992,0.0613677,92171.0,92170.0,0.21699034]
[1765192807464,0.0613677,92171.0,92170.0,0.24621828]
[1765192807862,0.0222577,92171.0,92170.0,0.24621828]
[1765192808326,0.0222577,92171.0,92170.0,0.21699034]
[1765192808873,0.0448077,92171.0,92170.0,0.21699034]
[1765192809329,0.00871484,92171.0,92170.0,0.21699034]
[1765192809505,0.00871484,92171.0,92170.0,0.25792034]
[1765192809912,0.00871484,92171.0,92170.0,0.23342034]
[1765192810121,0.00771484,92171.0,92170.0,0.23342034]
[1765192810321,0.00671484,92171.0,92170.0,0.23342034]
[1765192810674,0.00671484,92171.0,92170.0,0.29793884]
[1765192810878,0.00671484,92171.0,92170.0,0.25892034]
[1765192811727,0.00671484,92171.0,92170.0,0.23442034]
[1765192816789,0.05844484,92171.0,92170.0,0.21799034]
[1765192818803,0.0600577,92171.0,92170.0,0.21799034]
[1765192819834,0.0600577,92171.0,92170.0,0.21699034]
[1765192820377,0.0199577,92171.0,92170.0,0.21699034]
[1765192820649,0.0083277,92171.0,92170.0,0.21699034]
[1765192820997,0.0444977,92171.0,92170.0,0.21699034]
[1765192821204,0.0600577,92171.0,92170.0,0.21699034]
[1765192826430,0.0600577,92171.0,92170.0,0.25595456]
[1765192829495,0.0600577,92171.0,92170.0,0.21699034]
[1765192830130,0.0199577,92171.0,92170.0,0.21699034]
[1765192830639,0.0444977,92171.0,92170.0,0.21699034]
[1765192831033,0.0600577,92171.0,92170.0,0.21699034]
[1765192833177,0.0355177,92171.0,92170.0,0.21699034]
[1765192835330,0.0600577,92171.0,92170.0,0.21699034]
[1765192838698,0.0355177,92171.0,92170.0,0.21699034]
[1765192838907,0.0199577,92171.0,92170.0,0.21699034]
[1765192839103,0.00671484,92171.0,92170.0,0.21699034]
[1765192839707,0.00671484,92171.0,92170.0,0.21677589]
[1765192841007,0.00671484,92171.0,92170.0,0.25499589]
[1765192841203,0.00671484,92171.0,92170.0,0.31354646]
[1765192841458,0.00671484,92171.0,92170.0,0.29039646]
[1765192841641,0.00671484,92171.0,92170.0,0.27532646]
[1765192842236,0.00671484,92171.0,92170.0,0.27732646]
[1765192843172,0.00671484,92171.0,92170.0,0.27832646]
[1765192843356,0.00671484,92171.0,92170.0,0.21977589]
[1765192856031,0.00671484,92171.0,92170.0,0.23609589]
[1765192856231,0.00671484,92171.0,92170.0,0.25960589]
[1765192856439,0.00671484,92171.0,92170.0,0.28179789]
[1765192856621,0.00671484,92171.0,92170.0,0.25960589]
[1765192857353,0.00671484,92171.0,92170.0,0.66069116]
[1765192857570,0.00023133,92188.0,92187.0,0.23914232]
[1765192857722,0.0002862,92188.0,92187.0,0.59829232]
[1765192857922,0.0002862,92188.0,92187.0,0.62180232]
[1765192858754,0.0002862,92188.0,92187.0,0.59961032]
[1765192858976,0.0002862,92188.0,92187.0,0.70372345]
[1765192859171,0.0002862,92188.0,92187.0,0.62258145]
[1765192859382,0.0002862,92188.0,92187.0,0.60161032]
[1765192859585,0.0002862,92188.0,92187.0,0.60761032]
[1765192860078,0.0002862,92188.0,92187.0,0.62980232]
[1765192860464,0.0002862,92188.0,92187.0,0.56578032]
[1765192860859,0.0002862,92188.0,92187.0,0.54866032]
[1765192861065,0.0002862,92188.0,92187.0,0.56178032]
[1765192861264,0.0002862,92188.0,92187.0,0.58529032]
[1765192861568,0.0002862,92188.0,92187.0,0.60261032]
[1765192861795,0.0002862,92188.0,92187.0,0.60361032]
[1765192862742,0.0002862,92188.0,92187.0,0.62580232]
[1765192864900,0.0002862,92188.0,92187.0,0.65762168]
[1765192865305,1e-08,92188.0,92187.0,5.62580232]
[1765192865559,0.0004,92230.0,92205.0,0.022192]
[1765192865771,0.0004,92230.0,92205.0,0.388862]
[1765192865772,0.00101767,92206.0,92205.0,0.388862]
[1765192865922,0.00101767,92206.0,92205.0,0.413232]
[1765192867683,0.00201767,92206.0,92205.0,0.413232]
[1765192868188,0.00201767,92206.0,92204.0,0.21691032]
[1765192868337,0.00201767,92206.0,92205.0,0.04621464]
[1765192868338,0.02707053,92206.0,92205.0,0.04621464]
[1765192868562,0.02707053,92206.0,92205.0,0.01712]
[1765192868767,0.00363053,92206.0,92205.0,0.01712]
[1765192868970,0.00363053,92206.0,92201.0,0.01084586]
[1765192868971,0.04251053,92206.0,92201.0,0.01084586]
[1765192869153,0.0267,92202.0,92201.0,0.22776324]
[1765192869349,0.02831286,92202.0,92201.0,0.22776324]
[1765192869555,0.05175286,92202.0,92201.0,0.22776324]
[1765192871189,0.05475286,92202.0,92201.0,0.22776324]
[1765192871508,0.05515762,92202.0,92201.0,0.22776324]
[1765192873083,0.01084586,92201.0,92193.0,0.21693553]
[1765192873282,0.01523,92195.0,92194.0,0.21693153]
[1765192873673,0.03912,92195.0,92194.0,0.21693153]
[1765192874054,0.03912,92195.0,92193.0,0.01084681]
[1765192874278,0.03912,92194.0,92193.0,0.22778301]
[1765192875213,0.04996669,92194.0,92189.0,0.22779208]
[1765192875436,0.01523,92190.0,92188.0,0.01084739]
[1765192875572,0.01084692,92192.0,92189.0,0.2277929]
[1765192875773,0.02389,92192.0,92191.0,0.2169407]
[1765192876193,0.05161,92192.0,92191.0,0.2169407]
[1765192876539,0.01084704,92191.0,92186.0,0.22779872]
[1765192876752,0.02389,92191.0,92189.0,0.22779268]
[1765192876886,0.02389,92191.0,92190.0,0.216941]
[1765192877304,0.03912,92191.0,92190.0,0.216941]
[1765192878270,0.04312,92191.0,92190.0,0.216941]
[1765192878765,0.04212,92191.0,92190.0,0.216941]
[1765192879748,0.21694795,92190.0,92187.0,0.01084751]
[1765192879962,0.01523,92188.0,92186.0,0.01084763]
[1765192880135,0.01523,92188.0,92181.0,0.21696354]
[1765192880136,0.01084763,92186.0,92184.0,0.21695667]
[1765192880338,0.21695308,92186.0,92183.0,0.21695938]
[1765192880707,0.02389,92185.0,92183.0,0.21695938]
[1765192880847,0.01523,92184.0,92183.0,0.22780736]
[1765192881047,0.02772,92184.0,92183.0,0.22780736]
[1765192881234,0.05161,92184.0,92183.0,0.22780736]
[1765192882098,0.05161,92184.0,92183.0,0.21695974]
[1765192882099,0.11413299,92184.0,92183.0,0.21695974]
[1765192882296,0.08471898,92182.0,92181.0,0.22781267]
[1765192882492,0.07775299,92182.0,92179.0,0.01084845]
[1765192882693,0.01523,92180.0,92179.0,0.21696915]
[1765192882907,0.01523,92180.0,92178.0,0.01084857]
[1765192883216,0.29033318,92182.0,92179.0,0.21696915]
[1765192883711,0.01523,92180.0,92179.0,0.2278176]
[1765192883924,0.01523,92180.0,92167.0,0.03878645]
[1765192883925,0.07337144,92179.0,92167.0,0.03878645]
[1765192884120,0.07337144,92179.0,92167.0,0.01084987]
[1765192884121,0.22784201,92170.0,92167.0,0.01084987]
[1765192884248,0.06252299,92173.0,92169.0,0.01084963]
[1765192884452,0.08641299,92173.0,92171.0,0.21698787]
[1765192884636,0.06252299,92174.0,92172.0,0.21698563]
[1765192884837,0.06252299,92174.0,92173.0,0.21698328]
[1765192885038,0.06252299,92174.0,92173.0,0.21798328]
[1765192885294,0.10164299,92174.0,92173.0,0.21803815]
[1765192886203,0.10164299,92174.0,92173.0,0.21703815]
[1765192886527,0.10464299,92174.0,92173.0,0.21703815]
[1765192886904,0.10164299,92174.0,92173.0,0.21703815]
[1765192887149,0.10364299,92174.0,92173.0,0.21703815]
[1765192888663,0.06452299,92174.0,92173.0,0.21703815]
[1765192888872,0.002,92174.0,92173.0,0.21703815]
[1765192890343,0.04112,92174.0,92173.0,0.21703815]
[1765192896810,0.002,92174.0,92173.0,0.21703815]
[1765192898797,0.04112,92174.0,92173.0,0.21703815]
[1765192903577,0.002,92174.0,92173.0,0.24613279]
[1765192903845,0.002,92174.0,92173.0,0.21703815]
[1765192904425,0.04168,92174.0,92173.0,0.21703815]
[1765192906820,0.002,92174.0,92173.0,0.21703815]
[1765192908298,0.002,92174.0,92173.0,0.2958946]
[1765192908495,0.002,92174.0,92173.0,0.27930015]
[1765192910280,0.002,92174.0,92173.0,0.33752418]
[1765192912651,0.002,92174.0,92173.0,0.27930015]
[1765192913258,0.002,92174.0,92173.0,0.33782279]
[1765192918688,0.002,92174.0,92173.0,0.27556079]
[1765192919094,0.002,92174.0,92173.0,0.29268079]
[1765192920694,0.002,92174.0,92173.0,0.21703815]
[1765192920901,0.0259,92174.0,92173.0,0.23415815]
[1765192921106,0.002,92174.0,92173.0,0.23415815]
[1765192921303,0.002,92174.0,92173.0,0.21703815]
[1765192921505,0.04168,92174.0,92173.0,0.23415815]
[1765192921680,0.04168,92174.0,92173.0,0.21703815]
[1765192922863,0.01778,92174.0,92173.0,0.21703815]
[1765192923638,0.04168,92174.0,92173.0,0.21703815]
[1765192934258,0.04168,92174.0,92173.0,5.487e-05]
[1765192934544,0.25866092,92174.0,92173.0,5.487e-05]
[1765192934703,0.04168,92174.0,92173.0,0.21703815]
[1765192935902,0.04168,92174.0,92173.0,5.487e-05]
[1765192936456,0.32118391,92174.0,92173.0,5.487e-05]
[1765192937092,0.33134809,92174.0,92173.0,5.487e-05]
[1765192941367,0.32118391,92174.0,92173.0,5.487e-05]
[1765192943776,0.33133919,92174.0,92173.0,5.487e-05]
[1765192944480,0.32118391,92174.0,92173.0,5.487e-05]
[1765192944860,0.3433799,92174.0,92173.0,5.487e-05]
[1765192945063,0.35353494,92174.0,92173.0,5.487e-05]
[1765192945464,0.35253494,92174.0,92173.0,5.487e-05]
[1765192945667,0.13555402,92174.0,92173.0,5.487e-05]
[1765192945833,0.33033895,92174.0,92173.0,5.487e-05]
[1765192946029,0.11435803,92174.0,92173.0,5.487e-05]
[1765192946232,0.11435803,92174.0,92173.0,0.21703815]
[1765192947183,0.11335803,92174.0,92173.0,0.21703815]
[1765192947601,0.11835803,92174.0,92173.0,0.21703815]
[1765192948498,0.11835803,92174.0,92173.0,5.487e-05]
[1765192949050,0.33033895,92174.0,92173.0,5.487e-05]
[1765192949261,0.33233895,92174.0,92173.0,5.487e-05]
[1765192949421,0.33233899,92174.0,92173.0,5.487e-05]
[1765192950097,0.35353498,92174.0,92173.0,5.487e-05]
[1765192950314,0.11435807,92174.0,92173.0,5.487e-05]
[1765192950480,0.11435807,92174.0,92173.0,0.21703815]
[1765192950686,0.33133899,92174.0,92173.0,5.487e-05]
[1765192951547,0.33233899,92174.0,92173.0,5.487e-05]
[1765192952606,0.33233899,92174.0,92173.0,0.00195487]
[1765192954845,0.11535807,92174.0,92173.0,0.00195487]
[1765192955050,0.33233899,92174.0,92173.0,0.00195487]
[1765192955255,0.11535807,92174.0,92173.0,0.00195487]
[1765192956444,0.33233899,92174.0,92173.0,0.00195487]
[1765192958494,0.11535807,92174.0,92173.0,0.00195487]
[1765192959032,0.11535807,92174.0,92173.0,0.21893815]
[1765192959873,0.33233899,92174.0,92173.0,0.00195487]
[1765192960679,0.11535807,92174.0,92173.0,0.00195487]
[1765192960904,0.11535807,92174.0,92173.0,0.21893815]
[1765192962387,0.11535807,92174.0,92173.0,0.00195487]
[1765192962593,0.12680807,92174.0,92173.0,0.00195487]
[1765192965485,0.12680807,92174.0,92173.0,0.21893815]
[1765192966302,0.07567807,92174.0,92173.0,0.21893815]
[1765192966504,0.12552807,92174.0,92173.0,0.21893815]
[1765192966707,0.06300508,92174.0,92173.0,0.21893815]
[1765192966922,0.01462,92174.0,92173.0,0.21893815]
[1765192967763,0.0378,92174.0,92173.0,0.21893815]
[1765192968168,0.05285,92174.0,92173.0,0.21893815]
[1765192972438,0.05285,92174.0,92173.0,0.24821261]
[1765192973687,0.05285,92174.0,92173.0,0.03122933]
[1765192973882,0.05285,92174.0,92173.0,0.24821261]
[1765192974291,0.05285,92174.0,92173.0,0.03122933]
[1765192974470,0.05285,92174.0,92173.0,0.21893815]
[1765192974707,0.05285,92174.0,92173.0,0.00195487]
[1765192975108,0.05285,92174.0,92173.0,0.21893815]
[1765192976114,0.05285,92174.0,92173.0,0.00195487]
[1765192976474,0.05285,92174.0,92173.0,0.21893815]
[1765192980934,0.05285,92174.0,92173.0,0.24821261]
[1765192981937,0.01462,92174.0,92173.0,0.24821261]
[1765192982428,0.03901,92174.0,92173.0,0.24768261]
[1765192982630,0.05468,92174.0,92173.0,0.24768261]
[1765192986038,0.01462,92174.0,92173.0,0.24768261]
[1765192988862,0.003,92174.0,92173.0,0.23426815]
[1765192989103,0.003,92174.0,92173.0,0.25865815]
[1765192989908,0.003,92174.0,92173.0,0.21840815]
[1765192990252,0.001,92174.0,92173.0,0.21840815]
[1765192990421,0.001,92174.0,92173.0,0.24279815]
[1765192990651,0.001,92174.0,92173.0,0.21840815]
[1765192990806,0.002,92174.0,92173.0,0.21840815]
[1765192992311,0.002,92174.0,92173.0,0.27691359]
[1765192994734,0.0421,92174.0,92173.0,0.21840815]
[1765192996981,0.002,92174.0,92173.0,0.21840815]
[1765193007055,0.0421,92174.0,92173.0,0.21840815]
[1765193007481,0.01828,92174.0,92173.0,0.21840815]
[1765193007681,0.25908092,92174.0,92173.0,0.04042574]
[1765193007882,0.06429599,92174.0,92173.0,0.21840815]
[1765193008107,0.0421,92174.0,92173.0,0.21840815]
[1765193009343,0.002,92174.0,92173.0,0.21840815]
[1765193010321,0.002,92174.0,92173.0,0.24172815]
[1765193010725,0.002,92174.0,92173.0,0.21840815]
[1765193014029,0.0421,92174.0,92173.0,0.21840815]
[1765193014232,0.0421,92174.0,92173.0,0.25741923]
[1765193014883,0.0421,92174.0,92173.0,0.21840815]
[1765193024070,0.0421,92174.0,92173.0,0.00142487]
[1765193024738,0.0421,92174.0,92173.0,0.21840815]
[1765193026358,0.32160391,92174.0,92173.0,0.00142487]
[1765193027942,0.35396101,92174.0,92173.0,0.00142487]
[1765193028770,0.35196101,92174.0,92173.0,0.00142487]
[1765193029174,0.35496101,92174.0,92173.0,0.00142487]
[1765193029405,0.35196101,92174.0,92173.0,0.00142487]
[1765193029812,0.35596101,92174.0,92173.0,0.00142487]
[1765193029958,0.39054471,92174.0,92173.0,0.00142487]
[1765193030190,0.38654471,92174.0,92173.0,0.00142487]
[1765193030394,0.38454471,92174.0,92173.0,0.00142487]
[1765193030856,0.38654471,92174.0,92173.0,0.00142487]
[1765193031446,0.39054471,92174.0,92173.0,0.00142487]
[1765193033269,0.79054471,92174.0,92173.0,0.00142487]
[1765193036956,0.39054471,92174.0,92173.0,0.00142487]
[1765193042683,0.36834872,92174.0,92173.0,0.00142487]
[1765193044470,0.1513678,92174.0,92173.0,0.00142487]
[1765193044669,0.1187841,92174.0,92173.0,0.21840815]
[1765193045074,0.10862299,92174.0,92173.0,0.21840815]
[1765193045481,0.10662299,92174.0,92173.0,0.21840815]
[1765193045678,0.10262299,92174.0,92173.0,0.21840815]
[1765193045840,0.10362299,92174.0,92173.0,0.21840815]
[1765193046042,0.10562299,92174.0,92173.0,0.21840815]
[1765193050041,0.10562299,92174.0,92173.0,0.00142487]
[1765193050268,0.32260391,92174.0,92173.0,0.00142487]
[1765193051010,0.10562299,92174.0,92173.0,0.00142487]
[1765193051638,0.10562299,92174.0,92173.0,0.21840815]
[1765193057421,0.14033299,92174.0,92173.0,0.21840815]
[1765193061717,0.07781,92174.0,92173.0,0.21840815]
[1765193065132,0.07781,92174.0,92173.0,0.00142487]
[1765193065344,0.07781,92174.0,92173.0,0.21840815]
[1765193072157,0.08797601,92174.0,92173.0,0.21840815]
[1765193074382,0.08797601,92174.0,92173.0,0.24765838]
[1765193077334,0.08797601,92174.0,92173.0,0.21840815]
[1765193093089,0.30495693,92174.0,92173.0,0.00142487]
[1765193093328,0.08798132,92174.0,92173.0,0.00142487]
[1765193093490,0.08798132,92174.0,92173.0,0.0307284]
[1765193094668,0.08798132,92174.0,92173.0,0.24771168]
[1765193098219,0.08798132,92174.0,92173.0,0.21840815]
[1765193098425,0.08798132,92174.0,92173.0,0.00142487]
[1765193098811,0.08798132,92174.0,92173.0,0.21840815]
[1765193099011,0.08798132,92174.0,92173.0,0.00142487]
[1765193099211,0.38968122,92174.0,92173.0,0.00142487]
[1765193100162,0.36748523,92174.0,92173.0,0.00142487]
[1765193100938,0.39678876,92174.0,92173.0,0.00142487]
[1765193101940,0.41898475,92174.0,92173.0,0.00142487]
[1765193108491,0.39678876,92174.0,92173.0,0.00142487]
[1765193121600,0.41898475,92174.0,92173.0,0.00142487]
[1765193122647,0.41698475,92174.0,92173.0,0.00142487]
[1765193122946,0.41598475,92174.0,92173.0,0.00142487]
[1765193123152,0.41798475,92174.0,92173.0,0.00142487]
[1765193123352,0.42198475,92174.0,92173.0,0.00142487]
[1765193123562,0.41998475,92174.0,92173.0,0.00142487]
[1765193123985,0.42198475,92174.0,92173.0,0.00142487]
[1765193124473,0.41798475,92174.0,92173.0,0.00142487]
[1765193124820,0.42198475,92174.0,92173.0,0.00142487]
[1765193127332,0.39978876,92174.0,92173.0,0.00142487]
[1765193127528,0.42198475,92174.0,92173.0,0.00142487]
[1765193130115,0.39978876,92174.0,92173.0,0.00142487]
[1765193132212,0.3997824,92174.0,92173.0,0.00142487]
[1765193132933,0.42197839,92174.0,92173.0,0.00142487]
[1765193138636,0.3997824,92174.0,92173.0,0.00142487]
[1765193139026,0.3997806,92174.0,92173.0,0.00142487]
[1765193143256,0.42197659,92174.0,92173.0,0.00142487]
[1765193143441,0.3997806,92174.0,92173.0,0.00142487]
[1765193148341,0.18279968,92174.0,92173.0,0.00142487]
[1765193148577,0.08017669,92174.0,92173.0,0.21840815]
[1765193149990,0.07817669,92174.0,92173.0,0.21840815]
[1765193150187,0.07517669,92174.0,92173.0,0.21840815]
[1765193151601,0.09895669,92174.0,92173.0,0.21840815]
[1765193151843,0.11542669,92174.0,92173.0,0.21840815]
[1765193153553,0.11542796,92174.0,92173.0,0.21840815]
[1765193157466,0.07517796,92174.0,92173.0,0.21840815]
[1765193160294,0.06501353,92174.0,92173.0,0.21840815]
[1765193161078,0.10396353,92174.0,92173.0,0.21840815]
[1765193172320,0.11412093,92174.0,92173.0,0.21840815]
[1765193175329,0.07517093,92174.0,92173.0,0.21840815]
[1765193176684,0.11576093,92174.0,92173.0,0.21840815]
[1765193180739,0.33274185,92174.0,92173.0,0.00142487]
[1765193180907,0.11576093,92174.0,92173.0,0.00142487]
[1765193181465,0.33274185,92174.0,92173.0,0.00142487]
[1765193182684,0.38698208,92174.0,92173.0,0.00142487]
[1765193182894,0.40917807,92174.0,92173.0,0.00142487]
[1765193183077,0.38698208,92174.0,92173.0,0.00142487]
[1765193183716,0.40917807,92174.0,92173.0,0.00142487]
[1765193185711,0.38698208,92174.0,92173.0,0.00142487]
[1765193186047,0.17000116,92174.0,92173.0,0.21840815]
[1765193188036,0.17000116,92174.0,92173.0,0.00142487]
[1765193188643,0.17000116,92174.0,92173.0,0.21840815]
[1765193188854,0.17000116,92174.0,92173.0,0.00142487]
[1765193189241,0.17000116,92174.0,92173.0,0.21840815]
[1765193189741,0.38698208,92174.0,92173.0,0.00142487]
[1765193192353,0.38699005,92174.0,92173.0,0.00142487]
[1765193193705,0.47170903,92174.0,92173.0,0.00142487]
[1765193194347,0.44951304,92174.0,92173.0,0.00142487]
[1765193195095,0.23253212,92174.0,92173.0,0.00142487]
[1765193195521,0.44951304,92174.0,92173.0,0.00142487]
[1765193199422,0.44951334,92174.0,92173.0,0.00142487]
[1765193199779,0.23253242,92174.0,92173.0,0.00142487]
[1765193200217,0.44951334,92174.0,92173.0,0.00142487]
[1765193200591,0.23253242,92174.0,92173.0,0.00142487]
[1765193200798,0.44951334,92174.0,92173.0,0.00142487]
[1765193201219,0.23253242,92174.0,92173.0,0.00142487]
[1765193201415,0.44951334,92174.0,92173.0,0.00142487]
[1765193201644,0.23253242,92174.0,92173.0,0.00142487]
[1765193203127,0.23253242,92174.0,92173.0,0.21840815]
[1765193203497,0.23253242,92174.0,92173.0,0.00142487]
[1765193204178,0.23253242,92174.0,92173.0,0.21840815]
[1765193204695,0.23253242,92174.0,92173.0,0.00142487]
[1765193205107,0.44951334,92174.0,92173.0,0.00142487]
[1765193207746,0.47170933,92174.0,92173.0,0.00142487]
[1765193212489,0.47170451,92174.0,92173.0,0.00142487]
[1765193213972,0.47170406,92174.0,92173.0,0.00142487]
[1765193216614,0.47070406,92174.0,92173.0,0.00142487]
[1765193217834,0.47470406,92174.0,92173.0,0.00142487]
[1765193219261,0.45250807,92174.0,92173.0,0.00142487]
[1765193221028,0.47470406,92174.0,92173.0,0.00142487]
[1765193222276,0.87470406,92174.0,92173.0,0.00142487]
[1765193224266,0.87470259,92174.0,92173.0,0.00142487]
[1765193226036,0.47470259,92174.0,92173.0,0.00142487]
[1765193235463,0.79770259,92174.0,92173.0,0.00142487]
[1765193235827,1.19770259,92174.0,92173.0,0.00142487]
[1765193236139,1.19770259,92174.0,92153.0,0.00146834]
[1765193236140,0.30174699,92154.0,92153.0,0.00146834]
[1765193236344,0.38890615,92154.0,92153.0,0.00152318]
[1765193236543,0.41313615,92154.0,92153.0,0.00152318]
[1765193236743,0.44572916,92154.0,92153.0,0.00152318]
[1765193237381,0.44872916,92154.0,92153.0,0.00152318]
[1765193238768,0.44972916,92154.0,92153.0,0.00152318]
[1765193239832,0.45134202,92154.0,92153.0,0.00152318]
[1765193240485,0.85134202,92154.0,92153.0,0.00152318]
[1765193241962,0.85131745,92154.0,92153.0,0.00152318]
[1765193243549,0.45131745,92154.0,92153.0,0.00152318]
[1765193243937,0.77431745,92154.0,92153.0,0.00152318]
[1765193244131,1.17431745,92154.0,92153.0,0.00152318]
[1765193248059,1.17430906,92154.0,92153.0,0.00152318]
[1765193250376,1.17430732,92154.0,92153.0,0.00152318]
[1765193252817,1.1743074,92154.0,92153.0,0.00152318]
[1765193254321,1.1914274,92154.0,92153.0,0.00152318]
[1765193255553,1.1914274,92154.0,92153.0,3.18e-06]
[1765193255554,1.1743074,92154.0,92153.0,3.18e-06]
[1765193255926,1.1914274,92154.0,92153.0,3.18e-06]
[1765193256330,1.19142975,92154.0,92153.0,3.18e-06]
[1765193258062,1.22613975,92154.0,92153.0,3.18e-06]
[1765193263720,1.22615638,92154.0,92153.0,3.18e-06]
[1765193265459,1.20903638,92154.0,92153.0,3.18e-06]
[1765193265665,1.22615638,92154.0,92153.0,3.18e-06]
[1765193270119,1.22616955,92154.0,92153.0,3.18e-06]
[1765193271062,1.22616875,92154.0,92153.0,3.18e-06]
[1765193278803,1.22616576,92154.0,92153.0,3.18e-06]
[1765193286030,1.20396977,92154.0,92153.0,3.18e-06]
[1765193286210,1.22616576,92154.0,92153.0,3.18e-06]
[1765193292786,1.21601309,92154.0,92153.0,3.18e-06]
[1765193292986,1.22617036,92154.0,92153.0,3.18e-06]
[1765193296324,1.22617112,92154.0,92153.0,3.18e-06]
[1765193299154,1.20397513,92154.0,92153.0,3.18e-06]
[1765193299352,1.22617112,92154.0,92153.0,3.18e-06]
[1765193300055,1.25541008,92154.0,92153.0,3.18e-06]
[1765193300228,0.06252299,92124.0,92122.0,0.02929308]
[1765193300431,0.06252299,92124.0,92119.0,0.02929308]
[1765193300432,0.2796311,92120.0,92119.0,0.02929308]
[1765193300759,0.21711047,92119.0,92118.0,0.02929308]
[1765193300958,0.21711283,92118.0,92117.0,0.02929308]
[1765193301197,0.26809283,92118.0,92117.0,0.02929308]
[1765193301346,0.26809283,92118.0,92116.0,0.02929308]
[1765193301546,0.02291,92117.0,92116.0,0.02929308]
[1765193301755,0.03914,92117.0,92116.0,0.02929308]
[1765193302332,0.21711754,92116.0,92114.0,0.01085611]
[1765193302517,0.00874,92115.0,92114.0,0.22797803]
[1765193302722,0.03165,92115.0,92113.0,0.25727353]
[1765193303371,0.03165,92115.0,92113.0,0.22798045]
[1765193303589,0.03165,92115.0,92114.0,0.002]
[1765193304068,0.03265,92115.0,92114.0,0.002]
[1765193304754,0.04888,92115.0,92114.0,0.002]
[1765193304953,0.04888,92115.0,92113.0,0.23498045]
[1765193305155,0.04888,92115.0,92113.0,0.23698045]
[1765193305352,0.04788,92115.0,92113.0,0.22998045]
[1765193305677,0.04788,92115.0,92114.0,0.007]
[1765193305678,0.04888,92115.0,92114.0,0.007]
[1765193306068,0.00874,92115.0,92114.0,0.002]
[1765193306269,0.00974,92115.0,92114.0,0.002]
[1765193306450,0.00874,92115.0,92114.0,0.0031289]
[1765193306649,0.03165,92115.0,92114.0,0.0031289]
[1765193306856,0.00974,92115.0,92114.0,0.22725116]
[1765193311368,0.04888,92115.0,92114.0,0.0101289]
[1765193311609,0.04888,92115.0,92114.0,0.22725116]
[1765193313015,0.04888,92115.0,92114.0,0.0101289]
[1765193313730,0.04888,92115.0,92114.0,0.22725116]
[1765193315145,0.00974,92115.0,92114.0,0.22725116]